fUSD/lending_fUSD_20241225
["ID","MTS","AMOUNT","RATE_DAILY","PERIOD"]
[346612178,1735125062092,-1117.23,0.0001156,2]
[346612179,1735125062101,-500.0,0.0001156,2]
[346612180,1735125062110,-500.0,0.0001156,2]
[346612181,1735125062119,-500.0,0.0001156,2]
[346612182,1735125062128,-500.0,0.0001156,2]
[346612183,1735125062138,-1802.53,0.0001156,2]
[346612184,1735125062147,-500.0,0.0001156,2]
[346612185,1735125062156,-1407.09,0.0001156,2]
[346612186,1735125062165,-842.4,0.0001156,2]
[346612187,1735125062175,-1047.14,0.0001156,2]
[346612188,1735125062187,-641.28,0.0001156,2]
[346612189,1735125062196,-500.0,0.0001156,2]
[346612190,1735125062206,-500.0,0.0001156,2]
[346612191,1735125062216,-500.0,0.0001156,2]
[346612192,1735125062225,-500.0,0.0001156,2]
[346612193,1735125062234,-524.21,0.0001156,2]
[346612194,1735125062244,-550.32,0.0001156,2]
[346612195,1735125062254,-500.0,0.0001156,2]
[346612196,1735125062266,-500.0,0.0001156,2]
[346612197,1735125062275,-1725.59,0.0001156,2]
[346612198,1735125062285,-1653.79,0.0001156,2]
[346612199,1735125062294,-482.58343664,0.00011561,2]
[346612200,1735125062303,-648.59,0.00011561,2]
[346612201,1735125062313,-785.11,0.00011561,2]
[346612202,1735125062322,-500.0,0.00011561,2]
[346612203,1735125062332,-179.84824491,0.00011561,2]
[346612204,1735125062767,-1492.73,0.00011012,2]
[346612205,1735125062778,-320.15175509,0.00011561,2]
[346612206,1735125062790,-500.0,0.00011561,2]
[346612207,1735125062799,-557.11,0.00011561,2]
[346612208,1735125062810,-500.0,0.00011561,2]
[346612209,1735125062820,-500.0,0.00011561,2]
[346612210,1735125062830,-500.0,0.00011561,2]
[346612211,1735125062839,-421.18654649,0.00011561,2]
[346612212,1735125062852,-78.81345351,0.00011561,2]
[346612213,1735125062862,-500.0,0.00011561,2]
[346612214,1735125062872,-728.96,0.00011561,2]
[346612215,1735125062882,-500.0,0.00011561,2]
[346612216,1735125062892,-500.0,0.00011561,2]
[346612217,1735125062902,-669.56,0.00011561,2]
[346612218,1735125062913,-500.0,0.00011561,2]
[346612219,1735125062922,-726.31,0.00011561,2]
[346612220,1735125062937,-538.54,0.00011561,2]
[346612221,1735125062947,-500.0,0.00011561,2]
[346612222,1735125062957,-777.03,0.00011561,2]
[346612223,1735125062966,-500.0,0.00011561,2]
[346612224,1735125062977,-500.0,0.00011561,2]
[346612225,1735125062987,-672.42,0.00011561,2]
[346612226,1735125062997,-500.0,0.00011561,2]
[346612227,1735125063007,-500.0,0.00011561,2]
[346612228,1735125063017,-500.0,0.00011561,2]
[346612229,1735125063027,-586.24,0.00011561,2]
[346612230,1735125063038,-57.32654649,0.00011561,2]
[346612231,1735125063052,-810.27345351,0.00011561,2]
[346612232,1735125063063,-859.5,0.00011561,2]
[346612233,1735125063074,-1831.55,0.00011561,2]
[346612234,1735125063084,-500.0,0.00011561,2]
[346612235,1735125063095,-572.68,0.00011561,2]
[346612236,1735125063105,-693.11,0.00011561,2]
[346612237,1735125063115,-500.0,0.00011561,2]
[346612238,1735125063126,-612.5,0.00011561,2]
[346612239,1735125063136,-1077.16,0.00011561,2]
[346612240,1735125063147,-750.32,0.00011561,2]
[346612241,1735125063158,-623.05,0.00011561,2]
[346612242,1735125063168,-74.37536799,0.00011561,2]
[346612243,1735125063185,-425.62463201,0.00011561,2]
[346612244,1735125063197,-986.76,0.00011561,2]
[346612245,1735125063207,-500.0,0.00011561,2]
[346612246,1735125063218,-58.58436799,0.00011561,2]
[346612247,1735125063231,-481.48563201,0.00011561,2]
[346612248,1735125063242,-500.0,0.00011561,2]
[346612249,1735125063253,-4.50240799,0.00011561,2]
[346612250,1735125063267,-976.19759201,0.00011561,2]
[346612251,1735125063278,-500.0,0.00011561,2]
[346612252,1735125063289,-1057.52,0.00011561,2]
[346612253,1735125063299,-732.99,0.00011561,2]
[346612254,1735125063309,-500.0,0.00011561,2]
[346612255,1735125063320,-500.0,0.00011561,2]
[346612256,1735125063330,-212.49989907,0.00011561,2]
[346612257,1735125063350,-644.92010093,0.00011561,2]
[346612258,1735125063360,-760.48,0.00011561,2]
[346612259,1735125063371,-500.0,0.00011561,2]
[346612260,1735125063382,-55.95930607,0.00011561,2]
[346612261,1735125063395,-284.3,0.00011561,2]
[346612262,1735125063407,-738.73069393,0.00011561,2]
[346612263,1735125063419,-964.73,0.00011561,2]
[346612264,1735125063432,-772.08,0.00011561,2]
[346612265,1735125063443,-500.0,0.00011561,2]
[346612266,1735125063454,-215.45930607,0.00011561,2]
[346612267,1735125063466,-452.9,0.00011561,2]
[346612268,1735125063479,-56.68069393,0.00011561,2]
[346612269,1735125063489,-372.21930607,0.00011561,2]
[346612270,1735125063521,-458.00134583,0.0001156,2]
[346612271,1735125063549,-41.99865417,0.0001156,2]
[346612272,1735125063559,-283.72069393,0.00011561,2]
[346612273,1735125063569,-500.0,0.00011561,2]
[346612274,1735125063580,-552.57,0.00011561,2]
[346612275,1735125063591,-344.80920069,0.00011561,2]
[346612276,1735125064547,-1492.73,0.00011286,2]
[346612277,1735125064557,-24.31596835,0.00011286,2]
[346612278,1735125064583,-461.47544637,0.00011286,2]
[346612279,1735125064592,-1492.73,0.0001156,2]
[346612280,1735125064603,-155.19079931,0.00011561,2]
[346612281,1735125064613,-500.0,0.00011561,2]
[346612282,1735125064623,-788.81,0.00011561,2]
[346612283,1735125064633,-554.96,0.00011561,2]
[346612284,1735125064643,-629.41,0.00011561,2]
[346612285,1735125064652,-571.5,0.00011561,2]
[346612286,1735125064662,-838.58,0.00011561,2]
[346612287,1735125064671,-823.74,0.00011561,2]
[346612288,1735125064684,-394.52050312,0.00011561,2]
[346612289,1735125064694,-1226.46,0.00011561,2]
[346612290,1735125064704,-638.41,0.00011561,2]
[346612291,1735125064714,-607.07,0.00011561,2]
[346612292,1735125064724,-500.0,0.00011561,2]
[346612293,1735125064737,-574.9,0.00011561,2]
[346612294,1735125064747,-500.0,0.00011561,2]
[346612295,1735125064757,-593.35,0.00011561,2]
[346612296,1735125064767,-500.0,0.00011561,2]
[346612297,1735125064779,-1313.5,0.00011561,2]
[346612298,1735125064789,-668.38,0.00011561,2]
[346612299,1735125064799,-500.0,0.00011561,2]
[346612300,1735125064809,-1193.43,0.00011561,2]
[346612301,1735125064819,-621.74,0.00011561,2]
[346612302,1735125064829,-1471.03,0.00011561,2]
[346612303,1735125064838,-705.13,0.00011561,2]
[346612304,1735125064848,-500.0,0.00011561,2]
[346612305,1735125064858,-511.09,0.00011561,2]
[346612306,1735125064868,-500.0,0.00011561,2]
[346612307,1735125064877,-500.0,0.00011561,2]
[346612308,1735125064888,-500.0,0.00011561,2]
[346612309,1735125064898,-761.91,0.00011561,2]
[346612310,1735125064908,-535.1,0.00011561,2]
[346612311,1735125064918,-962.47,0.00011561,2]
[346612312,1735125064928,-500.0,0.00011561,2]
[346612313,1735125064937,-500.0,0.00011561,2]
[346612314,1735125064946,-500.0,0.00011561,2]
[346612315,1735125064956,-839.07,0.00011561,2]
[346612316,1735125064966,-500.0,0.00011561,2]
[346612317,1735125064975,-500.0,0.00011561,2]
[346612318,1735125064985,-818.01,0.00011561,2]
[346612319,1735125064994,-418.08000424,0.00011561,2]
[346612320,1735125120331,-0.30480476,0.00011561,2]
[346612321,1735125120755,-81.615191,0.00011561,2]
[346612322,1735125120768,-199.39362141,0.00011561,2]
[346612323,1735125120779,-1284.03637859,0.00011561,2]
[346612324,1735125120788,-500.0,0.00011561,2]
[346612325,1735125120800,-964.83886901,0.00011561,2]
[346612326,1735125120831,-221.07113099,0.00011561,2]
[346612327,1735125120840,-1260.17,0.00011561,2]
[346612328,1735125120850,-597.72,0.00011561,2]
[346612329,1735125120859,-500.0,0.00011561,2]
[346612330,1735125120868,-500.0,0.00011561,2]
[346612331,1735125120879,-1563.5,0.00011561,2]
[346612332,1735125120888,-1504.3,0.00011561,2]
[346612333,1735125120897,-255.238869,0.00011561,2]
[346612334,1735125120910,-294.601131,0.00011561,2]
[346612335,1735125120920,-500.0,0.00011561,2]
[346612336,1735125120929,-711.24,0.00011561,2]
[346612337,1735125120938,-500.0,0.00011561,2]
[346612338,1735125120947,-500.0,0.00011561,2]
[346612339,1735125120957,-1546.29,0.00011561,2]
[346612340,1735125120967,-709.25,0.00011561,2]
[346612341,1735125120981,-500.0,0.00011561,2]
[346612342,1735125120990,-1038.86,0.00011561,2]
[346612343,1735125121000,-517.32,0.00011561,2]
[346612344,1735125121009,-657.14,0.00011561,2]
[346612345,1735125121018,-500.0,0.00011561,2]
[346612346,1735125121219,-500.0,0.00011561,2]
[346612347,1735125121230,-551.02,0.00011561,2]
[346612348,1735125121239,-500.0,0.00011561,2]
[346612349,1735125121250,-500.0,0.00011561,2]
[346612350,1735125121259,-506.97886903,0.00011561,2]
[346612351,1735125121271,-38.95113097,0.00011561,2]
[346612352,1735125121281,-630.99,0.00011561,2]
[346612353,1735125121291,-1319.1,0.00011561,2]
[346612354,1735125121300,-674.5,0.00011561,2]
[346612355,1735125121310,-555.12,0.00011561,2]
[346612356,1735125121322,-500.0,0.00011561,2]
[346612357,1735125121331,-500.0,0.00011561,2]
[346612358,1735125121341,-500.0,0.00011561,2]
[346612359,1735125121350,-567.37,0.00011561,2]
[346612360,1735125121361,-500.0,0.00011561,2]
[346612361,1735125121371,-799.25,0.00011561,2]
[346612362,1735125121381,-546.54,0.00011561,2]
[346612363,1735125121390,-556.39,0.00011561,2]
[346612364,1735125121400,-500.0,0.00011561,2]
[346612365,1735125121409,-731.38,0.00011561,2]
[346612366,1735125121419,-655.2,0.00011561,2]
[346612367,1735125121428,-267.58308503,0.00011561,2]
[346612368,1735125121535,-232.41691497,0.00011561,2]
[346612369,1735125121545,-586.57,0.00011561,2]
[346612370,1735125121555,-782.71,0.00011561,2]
[346612371,1735125121565,-500.0,0.00011561,2]
[346612372,1735125121574,-1061.21,0.00011561,2]
[346612373,1735125121583,-500.0,0.00011561,2]
[346612374,1735125121593,-655.5,0.00011561,2]
[346612375,1735125121602,-1108.43,0.00011561,2]
[346612376,1735125121611,-671.69,0.00011561,2]
[346612377,1735125121621,-500.0,0.00011561,2]
[346612378,1735125121630,-921.69,0.00011561,2]
[346612379,1735125121641,-766.48,0.00011562,2]
[346612380,1735125121651,-2495.73,0.00011562,2]
[346612381,1735125121661,-914.28,0.00011562,2]
[346612382,1735125121671,-1504.72,0.00011562,2]
[346612383,1735125121681,-500.0,0.00011562,2]
[346612384,1735125121691,-1403.24,0.00011562,2]
[346612385,1735125121701,-515.56,0.00011562,2]
[346612386,1735125121711,-1872.65,0.00011562,2]
[346612387,1735125121726,-745.22,0.00011562,2]
[346612388,1735125121735,-500.0,0.00011562,2]
[346612389,1735125121745,-957.54,0.00011562,2]
[346612390,1735125121756,-589.77,0.00011562,2]
[346612391,1735125121765,-700.43,0.00011562,2]
[346612392,1735125121774,-201.57,0.00011564,2]
[346612393,1735125121784,-628.68,0.00011578,2]
[346612394,1735125121793,-1000.0,0.00011718,2]
[346612395,1735125121803,-500.0,0.00011834,2]
[346612396,1735125121812,-500.96984342,0.00011834,2]
[346612397,1735125121821,-324.43761874,0.00011834,2]
[346612398,1735125121830,-500.0,0.00011834,2]
[346612399,1735125121840,-500.0,0.00011834,2]
[346612400,1735125121850,-500.0,0.00011834,2]
[346612401,1735125121860,-500.0,0.00011834,2]
[346612402,1735125121869,-500.0,0.00011834,2]
[346612403,1735125121879,-500.0,0.00011834,2]
[346612404,1735125121888,-500.0,0.00011834,2]
[346612405,1735125121897,-500.0,0.00011834,2]
[346612406,1735125121908,-500.0,0.00011834,2]
[346612407,1735125121918,-500.0,0.00011834,2]
[346612408,1735125121927,-500.0,0.00011834,2]
[346612409,1735125121937,-500.0,0.00011834,2]
[346612410,1735125121946,-612.98,0.00011834,2]
[346612411,1735125121955,-500.0,0.00011834,2]
[346612412,1735125121964,-500.0,0.00011834,2]
[346612413,1735125121979,-429.05216857,0.00011834,2]
[346612414,1735125121988,-500.0,0.00011834,2]
[346612415,1735125121997,-500.0,0.00011834,2]
[346612416,1735125122006,-500.0,0.00011834,2]
[346612417,1735125122015,-503.17810111,0.00011834,2]
[346612418,1735125122024,-500.0,0.00011834,2]
[346612419,1735125122034,-500.0,0.00011834,2]
[346612420,1735125122043,-500.0,0.00011834,2]
[346612421,1735125122052,-500.0,0.00011834,2]
[346612422,1735125122061,-500.0,0.00011834,2]
[346612423,1735125122070,-500.0,0.00011834,2]
[346612424,1735125122080,-500.0,0.00011834,2]
[346612425,1735125122089,-500.0,0.00011834,2]
[346612426,1735125122098,-500.0,0.00011834,2]
[346612427,1735125122107,-500.0,0.00011834,2]
[346612428,1735125122116,-500.0,0.00011834,2]
[346612429,1735125122125,-502.65372999,0.00011834,2]
[346612430,1735125122135,-500.0,0.00011834,2]
[346612431,1735125122144,-500.0,0.00011834,2]
[346612432,1735125122153,-631.38,0.00011834,2]
[346612433,1735125122163,-500.0,0.00011834,2]
[346612434,1735125122172,-500.0,0.00011834,2]
[346612435,1735125122181,-500.0,0.00011834,2]
[346612436,1735125122191,-500.0,0.00011834,2]
[346612437,1735125122200,-423.27383343,0.00011834,2]
[346612438,1735125122209,-500.0,0.00011834,2]
[346612439,1735125122220,-510.75,0.00011834,2]
[346612440,1735125122229,-500.0,0.00011834,2]
[346612441,1735125122239,-500.0,0.00011834,2]
[346612442,1735125122248,-603.34,0.00011834,2]
[346612443,1735125122257,-500.0,0.00011834,2]
[346612444,1735125122266,-500.0,0.00011834,2]
[346612445,1735125122276,-375.92186354,0.00011834,2]
[346612446,1735125122285,-500.0,0.00011834,2]
[346612447,1735125122294,-282.3,0.00011834,2]
[346612448,1735125122304,-500.0,0.00011834,2]
[346612449,1735125122314,-500.0,0.00011834,2]
[346612450,1735125122323,-500.0,0.00011834,2]
[346612451,1735125122332,-590.12,0.00011834,2]
[346612452,1735125122342,-500.0,0.00011834,2]
[346612453,1735125122351,-500.0,0.00011834,2]
[346612454,1735125122360,-500.0,0.00011834,2]
[346612455,1735125122369,-500.0,0.00011834,2]
[346612456,1735125122378,-500.0,0.00011834,2]
[346612457,1735125122388,-500.0,0.00011834,2]
[346612458,1735125122397,-500.0,0.00011834,2]
[346612459,1735125122406,-527.35,0.00011834,2]
[346612460,1735125122414,-500.0,0.00011834,2]
[346612461,1735125122423,-500.0,0.00011834,2]
[346612462,1735125122432,-500.0,0.00011834,2]
[346612463,1735125122441,-500.0,0.00011834,2]
[346612464,1735125122450,-500.0,0.00011834,2]
[346612465,1735125122458,-500.0,0.00011834,2]
[346612466,1735125122469,-515.88,0.00011834,2]
[346612467,1735125122478,-500.0,0.00011834,2]
[346612468,1735125122487,-500.0,0.00011834,2]
[346612469,1735125122496,-500.0,0.00011834,2]
[346612470,1735125122506,-500.0,0.00011834,2]
[346612471,1735125122515,-500.0,0.00011834,2]
[346612472,1735125122524,-500.0,0.00011834,2]
[346612473,1735125122533,-646.45,0.00011834,2]
[346612474,1735125122543,-500.0,0.00011834,2]
[346612475,1735125122552,-500.0,0.00011834,2]
[346612476,1735125122561,-724.23,0.00011834,2]
[346612477,1735125122570,-627.16,0.00011834,2]
[346612478,1735125122579,-500.0,0.00011834,2]
[346612479,1735125122589,-500.0,0.00011834,2]
[346612480,1735125122598,-500.0,0.00011834,2]
[346612481,1735125122608,-284.81358123,0.00011834,2]
[346612482,1735125122617,-500.0,0.00011834,2]
[346612483,1735125122626,-500.0,0.00011834,2]
[346612484,1735125122635,-1009.13,0.00011834,2]
[346612485,1735125122646,-500.0,0.00011834,2]
[346612486,1735125122655,-500.0,0.00011834,2]
[346612487,1735125122664,-500.0,0.00011834,2]
[346612488,1735125122674,-500.0,0.00011834,2]
[346612489,1735125122683,-500.0,0.00011834,2]
[346612490,1735125122692,-500.0,0.00011834,2]
[346612491,1735125122702,-500.0,0.00011834,2]
[346612492,1735125122712,-657.99,0.00011834,2]
[346612493,1735125122722,-500.0,0.00011834,2]
[346612494,1735125122731,-500.0,0.00011834,2]
[346612495,1735125122741,-500.0,0.00011834,2]
[346612496,1735125122751,-500.0,0.00011834,2]
[346612497,1735125122764,-500.0,0.00011834,2]
[346612498,1735125122774,-500.0,0.00011834,2]
[346612499,1735125122784,-500.0,0.00011834,2]
[346612500,1735125122792,-500.0,0.00011834,2]
[346612501,1735125122802,-392.67642252,0.00011834,2]
[346612502,1735125122811,-500.0,0.00011834,2]
[346612503,1735125122820,-500.0,0.00011834,2]
[346612504,1735125122830,-500.0,0.00011834,2]
[346612505,1735125122843,-723.12,0.00011834,2]
[346612506,1735125122853,-500.0,0.00011834,2]
[346612507,1735125122862,-539.83,0.00011834,2]
[346612508,1735125122872,-521.17,0.00011834,2]
[346612509,1735125122882,-500.0,0.00011834,2]
[346612510,1735125122891,-500.0,0.00011834,2]
[346612511,1735125122900,-500.0,0.00011834,2]
[346612512,1735125122910,-500.0,0.00011834,2]
[346612513,1735125122919,-500.0,0.00011834,2]
[346612514,1735125122928,-500.0,0.00011834,2]
[346612515,1735125122938,-841.44,0.00011834,2]
[346612516,1735125122948,-500.0,0.00011834,2]
[346612517,1735125122958,-500.0,0.00011834,2]
[346612518,1735125122967,-538.93,0.00011834,2]
[346612519,1735125122977,-500.0,0.00011834,2]
[346612520,1735125122986,-738.83,0.00011834,2]
[346612521,1735125122995,-500.0,0.00011834,2]
[346612522,1735125123005,-634.49,0.00011834,2]
[346612523,1735125123013,-500.0,0.00011834,2]
[346612524,1735125123023,-624.34,0.00011834,2]
[346612525,1735125123032,-500.0,0.00011834,2]
[346612526,1735125123041,-526.29,0.00011834,2]
[346612527,1735125123051,-500.0,0.00011834,2]
[346612528,1735125123061,-500.0,0.00011834,2]
[346612529,1735125123070,-655.83,0.00011834,2]
[346612530,1735125123079,-670.52,0.00011834,2]
[346612531,1735125123089,-577.37,0.00011834,2]
[346612532,1735125123098,-500.0,0.00011834,2]
[346612533,1735125123108,-1023.89,0.00011834,2]
[346612534,1735125123118,-578.11,0.00011834,2]
[346612535,1735125123127,-500.0,0.00011834,2]
[346612536,1735125123137,-500.0,0.00011834,2]
[346612537,1735125123146,-314.376916,0.00011834,2]
[346612538,1735125123156,-500.0,0.00011834,2]
[346612539,1735125123166,-677.34,0.00011834,2]
[346612540,1735125123176,-500.0,0.00011834,2]
[346612541,1735125123185,-500.0,0.00011834,2]
[346612542,1735125123195,-500.0,0.00011834,2]
[346612543,1735125123205,-888.27,0.00011834,2]
[346612544,1735125123215,-528.35,0.00011834,2]
[346612545,1735125123227,-1264.81,0.00011834,2]
[346612546,1735125123236,-500.0,0.00011834,2]
[346612547,1735125123245,-500.0,0.00011834,2]
[346612548,1735125123255,-1360.41,0.00011834,2]
[346612549,1735125123264,-615.37,0.00011834,2]
[346612550,1735125123275,-500.0,0.00011834,2]
[346612551,1735125123284,-500.0,0.00011834,2]
[346612552,1735125123293,-849.0,0.00011834,2]
[346612553,1735125123303,-505.48626186,0.00011834,2]
[346612554,1735125123312,-500.0,0.00011834,2]
[346612555,1735125123322,-1084.12,0.00011834,2]
[346612556,1735125123332,-500.0,0.00011834,2]
[346612557,1735125123343,-5091.52,0.00011834,2]
[346612558,1735125123352,-500.0,0.00011834,2]
[346612559,1735125123362,-500.0,0.00011834,2]
[346612560,1735125123371,-688.6,0.00011834,2]
[346612561,1735125123380,-1300.29,0.00011834,2]
[346612562,1735125123389,-500.0,0.00011834,2]
[346612563,1735125123399,-616.7,0.00011834,2]
[346612564,1735125123408,-500.0,0.00011834,2]
[346612565,1735125123417,-4750.19,0.00011834,2]
[346612566,1735125123426,-8072.16,0.00011834,2]
[346612567,1735125123435,-643.09,0.00011834,2]
[346612568,1735125123445,-500.0,0.00011834,2]
[346612569,1735125123454,-551.84,0.00011834,2]
[346612570,1735125123464,-542.9,0.00011834,2]
[346612571,1735125123474,-1314.98,0.00011834,2]
[346612572,1735125123483,-684.97,0.00011834,2]
[346612573,1735125123492,-500.0,0.00011834,2]
[346612574,1735125123502,-500.0,0.00011834,2]
[346612575,1735125123511,-2749.58,0.00011834,2]
[346612576,1735125123520,-500.0,0.00011834,2]
[346612577,1735125123530,-1831.35,0.00011834,2]
[346612578,1735125123540,-500.0,0.00011834,2]
[346612579,1735125123549,-688.2,0.00011834,2]
[346612580,1735125123558,-869.82,0.00011834,2]
[346612581,1735125123567,-953.13,0.00011834,2]
[346612582,1735125123576,-3687.65,0.00011834,2]
[346612583,1735125123585,-917.65,0.00011834,2]
[346612584,1735125123595,-500.0,0.00011834,2]
[346612585,1735125123604,-1486.16,0.00011834,2]
[346612586,1735125123613,-503.92,0.00011834,2]
[346612587,1735125123623,-500.0,0.00011834,2]
[346612588,1735125123632,-4526.22,0.00011834,2]
[346612589,1735125123641,-1504.14,0.00011834,2]
[346612590,1735125123651,-1275.36,0.00011834,2]
[346612591,1735125123660,-500.0,0.00011834,2]
[346612592,1735125123669,-1509.46,0.00011834,2]
[346612593,1735125123678,-500.0,0.00011834,2]
[346612594,1735125123688,-617.29,0.00011834,2]
[346612595,1735125123699,-1701.85,0.00011834,2]
[346612596,1735125123710,-500.0,0.00011834,2]
[346612597,1735125123723,-3166.68,0.00011834,2]
[346612598,1735125123733,-500.0,0.00011834,2]
[346612599,1735125123743,-1104.98,0.00011834,2]
[346612600,1735125123753,-506.4,0.00011834,2]
[346612601,1735125123767,-500.0,0.00011834,2]
[346612602,1735125123776,-500.0,0.00011834,2]
[346612603,1735125123786,-500.0,0.00011834,2]
[346612604,1735125123796,-500.0,0.00011834,2]
[346612605,1735125123805,-1698.41,0.00011834,2]
[346612606,1735125123816,-6085.96,0.00011834,2]
[346612607,1735125123827,-2970.33,0.00011834,2]
[346612608,1735125123837,-1543.09,0.00011834,2]
[346612609,1735125123847,-930.59,0.00011834,2]
[346612610,1735125123858,-2313.76,0.00011834,2]
[346612611,1735125123868,-2044.02,0.00011834,2]
[346612612,1735125124038,-500.0,0.00011834,2]
[346612613,1735125124059,-500.0,0.00011834,2]
[346612614,1735125124068,-768.8,0.00011834,2]
[346612615,1735125124078,-2761.74,0.00011834,2]
[346612616,1735125124088,-993.06,0.00011834,2]
[346612617,1735125124097,-707.78,0.00011834,2]
[346612618,1735125124107,-2421.79,0.00011834,2]
[346612619,1735125124116,-1019.47,0.00011834,2]
[346612620,1735125124126,-714.55,0.00011834,2]
[346612621,1735125124135,-10474.48,0.00011834,2]
[346612622,1735125124144,-791.89,0.00011834,2]
[346612623,1735125124154,-500.0,0.00011834,2]
[346612624,1735125124163,-2355.55,0.00011834,2]
[346612625,1735125124173,-505.61,0.00011834,2]
[346612626,1735125124183,-669.67,0.00011834,2]
[346612627,1735125124194,-500.0,0.00011834,2]
[346612628,1735125124203,-599.31,0.00011834,2]
[346612629,1735125124213,-500.0,0.00011834,2]
[346612630,1735125124223,-1901.98,0.00011834,2]
[346612631,1735125124233,-500.0,0.00011834,2]
[346612632,1735125124243,-2072.63,0.00011834,2]
[346612633,1735125124253,-500.0,0.00011834,2]
[346612634,1735125124263,-500.0,0.00011834,2]
[346612635,1735125124272,-1077.68,0.00011834,2]
[346612636,1735125124282,-1116.15,0.00011834,2]
[346612637,1735125124291,-1966.25,0.00011834,2]
[346612638,1735125124301,-500.0,0.00011834,2]
[346612639,1735125124311,-626.11,0.00011834,2]
[346612640,1735125124322,-707.77,0.00011834,2]
[346612641,1735125124332,-826.62,0.00011834,2]
[346612642,1735125124341,-1210.43,0.00011834,2]
[346612643,1735125124351,-500.0,0.00011834,2]
[346612644,1735125124361,-807.95,0.00011834,2]
[346612645,1735125124370,-1258.6,0.00011834,2]
[346612646,1735125124380,-500.0,0.00011834,2]
[346612647,1735125124390,-520.41,0.00011834,2]
[346612648,1735125124400,-700.89,0.00011834,2]
[346612649,1735125124410,-500.0,0.00011834,2]
[346612650,1735125124419,-7897.31,0.00011834,2]
[346612651,1735125124429,-500.0,0.00011834,2]
[346612652,1735125124439,-581.85,0.00011834,2]
[346612653,1735125124448,-500.0,0.00011834,2]
[346612654,1735125124458,-789.66,0.00011834,2]
[346612655,1735125124467,-579.37,0.00011834,2]
[346612656,1735125124478,-664.67,0.00011834,2]
[346612657,1735125124487,-500.0,0.00011834,2]
[346612658,1735125124497,-649.66,0.00011834,2]
[346612659,1735125124506,-1024.64,0.00011834,2]
[346612660,1735125124515,-526.36,0.00011834,2]
[346612661,1735125124526,-509.44,0.00011834,2]
[346612662,1735125124536,-1257.87,0.00011834,2]
[346612663,1735125124546,-1117.23,0.00011834,2]
[346612664,1735125124556,-500.0,0.00011834,2]
[346612665,1735125124565,-500.0,0.00011834,2]
[346612666,1735125124575,-500.0,0.00011834,2]
[346612667,1735125124584,-500.0,0.00011834,2]
[346612668,1735125124594,-1802.53,0.00011834,2]
[346612669,1735125124603,-500.0,0.00011834,2]
[346612670,1735125124614,-1407.09,0.00011834,2]
[346612671,1735125124623,-842.4,0.00011834,2]
[346612672,1735125124633,-1047.14,0.00011834,2]
[346612673,1735125124642,-641.28,0.00011834,2]
[346612674,1735125124652,-500.0,0.00011834,2]
[346612675,1735125124661,-500.0,0.00011834,2]
[346612676,1735125124670,-500.0,0.00011834,2]
[346612677,1735125124679,-500.0,0.00011834,2]